bitfinex/quotes_BTCUSD_20251104
["timestamp","ask_amount","ask_price","bid_price","bid_amount"]
[1762274225096,0.00848659,102800.0,102790.0,0.23515899]
[1762274225309,0.00848659,102800.0,102790.0,0.33073505]
[1762274225518,0.22091911,102800.0,102790.0,0.03110899]
[1762274226528,0.02636659,102800.0,102790.0,0.03110899]
[1762274226739,0.01848659,102800.0,102790.0,0.07919899]
[1762274226910,0.01848659,102800.0,102790.0,0.23615899]
[1762274227112,0.01848659,102800.0,102790.0,0.99109005]
[1762274228106,0.01848659,102800.0,102790.0,0.99109005]
[1762274228365,0.01922182,102800.0,102790.0,0.99109005]
[1762274228565,0.01922182,102800.0,102790.0,0.4099154]
[1762274228790,0.01922182,102800.0,102790.0,0.90935669]
[1762274229233,0.01922182,102800.0,102790.0,0.90939669]
[1762274229461,0.01922182,102800.0,102790.0,0.23619899]
[1762274229672,0.01922182,102800.0,102790.0,0.18810899]
[1762274229932,0.01922182,102800.0,102790.0,0.09238899]
[1762274230178,0.01922182,102800.0,102790.0,0.20215689]
[1762274230407,0.01922182,102800.0,102790.0,0.18810899]
[1762274231135,0.01922182,102800.0,102790.0,0.76928364]
[1762274232493,0.01922182,102800.0,102790.0,1.30369572]
[1762274232721,0.0004,102820.0,102810.0,1.20757193]
[1762274232944,0.00054585,102820.0,102810.0,1.10330732]
[1762274233161,0.00054585,102820.0,102810.0,1.19902732]
[1762274233388,0.00103584,102820.0,102810.0,1.19902732]
[1762274233619,0.00103584,102820.0,102810.0,1.29360338]
[1762274233842,0.00103584,102820.0,102810.0,0.7125881]
[1762274234062,0.00603584,102820.0,102810.0,0.7125881]
[1762274234520,0.00103584,102820.0,102810.0,0.7125881]
[1762274234750,0.01403584,102820.0,102810.0,1.41921641]
[1762274234973,0.01403584,102820.0,102810.0,1.84993229]
[1762274235200,0.00289575,102840.0,102830.0,1.13665136]
[1762274235426,0.00289575,102840.0,102830.0,1.32353641]
[1762274235668,0.00289575,102840.0,102830.0,1.41693641]
[1762274235896,0.00289575,102840.0,102830.0,0.7123081]
[1762274236119,0.00289575,102840.0,102830.0,0.18570899]
[1762274236336,0.00289575,102840.0,102830.0,0.27773204]
[1762274237013,0.00689575,102840.0,102830.0,0.27773204]
[1762274237249,0.00689575,102840.0,102830.0,0.28173204]
[1762274237471,0.00289575,102840.0,102830.0,0.3763081]
[1762274237695,0.00289575,102840.0,102830.0,0.3743081]
[1762274237910,0.1973726,102840.0,102830.0,0.03102899]
[1762274238343,0.1973726,102840.0,102830.0,0.02906899]
[1762274238584,0.2013726,102840.0,102830.0,0.02906899]
[1762274238799,0.92867091,102840.0,102830.0,0.02906899]
[1762274239017,0.92867091,102840.0,102830.0,0.02910899]
[1762274239018,0.95573091,102840.0,102830.0,0.02910899]
[1762274239230,1.29573091,102840.0,102830.0,0.0097662]
[1762274239447,1.29573091,102840.0,102830.0,0.0098062]
[1762274239838,1.33191319,102840.0,102830.0,0.0098062]
[1762274240067,0.5650426,102840.0,102830.0,0.0098062]
[1762274240267,0.5610426,102840.0,102830.0,0.0098062]
[1762274240500,0.5600426,102840.0,102830.0,0.0118062]
[1762274240733,0.5600426,102840.0,102830.0,0.0148062]
[1762274240967,1.29173091,102840.0,102830.0,0.0098062]
[1762274241226,3.29222076,102840.0,102830.0,0.0098062]
[1762274241485,3.32840304,102840.0,102830.0,0.0099962]
[1762274242191,3.3728236,102840.0,102830.0,0.0099962]
[1762274242413,3.3488236,102840.0,102830.0,0.0099962]
[1762274243071,3.3488236,102840.0,102830.0,0.0049962]
[1762274243311,0.53451468,102820.0,102810.0,8e-05]
[1762274243730,0.60178468,102820.0,102810.0,8e-05]
[1762274244232,0.62884468,102820.0,102810.0,8e-05]
[1762274244474,0.60178468,102820.0,102810.0,0.00508]
[1762274244951,1.33347299,102820.0,102810.0,0.01012]
[1762274245636,1.30641299,102820.0,102810.0,0.01016]
[1762274245992,1.33347299,102820.0,102810.0,0.01016]
[1762274246083,1.33347299,102820.0,102810.0,0.0102]
[1762274246336,0.60178468,102820.0,102810.0,0.0102]
[1762274246575,0.62884468,102820.0,102810.0,0.0102]
[1762274246794,0.60178468,102820.0,102810.0,0.0102]
[1762274247012,0.62884468,102820.0,102810.0,0.0102]
[1762274247240,0.0446,102820.0,102810.0,0.07348]
[1762274247465,0.0446,102820.0,102810.0,0.174228]
[1762274247704,0.00289575,102840.0,102810.0,0.174228]
[1762274247915,0.04745575,102840.0,102820.0,0.13842305]
[1762274248122,0.04745575,102840.0,102820.0,0.23182305]
[1762274248344,0.04745575,102840.0,102830.0,0.06328]
[1762274248559,0.00289575,102840.0,102830.0,0.15668]
[1762274248773,0.00289575,102840.0,102830.0,0.17602279]
[1762274249181,0.0033856,102840.0,102830.0,0.08262279]
[1762274249385,0.22053245,102840.0,102830.0,0.01934279]
[1762274249595,0.0033856,102840.0,102830.0,0.01934279]
[1762274249822,0.0033856,102840.0,102830.0,0.18259707]
[1762274250025,0.0033856,102840.0,102830.0,0.27462012]
[1762274250227,0.0063856,102840.0,102830.0,0.27462012]
[1762274250440,0.0033856,102840.0,102830.0,0.27462012]
[1762274251246,0.0033856,102840.0,102830.0,1.55392647]
[1762274251470,0.0033856,102840.0,102830.0,0.84929816]
[1762274251706,0.0033856,102840.0,102830.0,1.55392647]
[1762274251876,0.0033856,102840.0,102830.0,1.35943071]
[1762274252080,0.0033856,102840.0,102830.0,1.55392647]
[1762274252300,0.0073856,102840.0,102830.0,1.55392647]
[1762274252520,0.0073856,102840.0,102830.0,1.54992647]
[1762274252737,0.0033856,102840.0,102830.0,1.54992647]
[1762274252949,0.0083856,102840.0,102830.0,1.54992647]
[1762274253300,0.0033856,102840.0,102830.0,1.75992646]
[1762274253775,0.0004,102850.0,102840.0,0.19447685]
[1762274254005,0.0004,102850.0,102840.0,1.49726121]
[1762274254211,0.0004,102850.0,102840.0,1.69726121]
[1762274254422,0.0004,102850.0,102840.0,1.73344349]
[1762274254630,0.0004,102850.0,102840.0,1.52896665]
[1762274254832,0.0004,102850.0,102840.0,1.32896665]
[1762274255045,0.0004,102850.0,102840.0,1.5234435]
[1762274255668,0.0004,102850.0,102840.0,0.58815606]
[1762274255909,0.0004,102850.0,102830.0,0.11336584]
[1762274256361,0.0024,102850.0,102830.0,0.02134279]
[1762274256568,0.0004,102850.0,102840.0,0.09202305]
[1762274256767,0.0004,102850.0,102830.0,0.20213584]
[1762274256946,0.0074,102850.0,102830.0,0.20213584]
[1762274257161,0.0074,102850.0,102830.0,0.49120698]
[1762274257361,0.0044,102850.0,102840.0,0.15358]
[1762274257559,0.0044,102850.0,102840.0,1.05268516]
[1762274257798,0.0094,102850.0,102840.0,1.05268516]
[1762274257946,0.0094,102850.0,102840.0,0.09457606]
[1762274258147,0.0054,102850.0,102840.0,0.24815606]
[1762274258448,0.02809,102850.0,102830.0,0.45136584]
[1762274258656,0.03009,102850.0,102830.0,0.45136584]
[1762274258901,0.02809,102850.0,102830.0,0.45136584]
[1762274259081,0.0054,102850.0,102830.0,0.54213584]
[1762274259282,0.0044,102850.0,102840.0,0.06281]
[1762274259484,0.0004,102850.0,102840.0,0.23352413]
[1762274259682,0.00064487,102850.0,102840.0,0.23352413]
[1762274259884,0.00564487,102850.0,102840.0,0.23352413]
[1762274260141,0.00364487,102850.0,102840.0,0.15358]
[1762274260351,0.00064487,102850.0,102840.0,0.15358]
[1762274260649,0.00064487,102850.0,102820.0,0.09096]
[1762274260650,0.02838487,102850.0,102820.0,0.09096]
[1762274260854,0.19474758,102840.0,102810.0,0.20233584]
[1762274261080,0.19449584,102830.0,102810.0,0.0002]
[1762274261280,0.19451468,102820.0,102810.0,0.0002]
[1762274261498,0.21693468,102820.0,102810.0,0.0002]
[1762274261916,0.24401468,102820.0,102810.0,0.0002]
[1762274262329,0.0495,102820.0,102810.0,0.0002]
[1762274262535,0.02242,102820.0,102810.0,0.0022]
[1762274262746,0.28853468,102820.0,102810.0,0.0002]
[1762274262952,0.99316299,102820.0,102810.0,0.0002]
[1762274263095,0.79864831,102820.0,102810.0,0.0002]
[1762274263293,0.09402,102820.0,102810.0,0.0022]
[1762274263486,0.28853468,102820.0,102810.0,0.0022]
[1762274263690,0.09402,102820.0,102810.0,0.0022]
[1762274263892,0.06694,102820.0,102810.0,0.0022]
[1762274264287,0.09266792,102850.0,102810.0,0.15578]
[1762274264549,0.0716,102840.0,102810.0,0.30329068]
[1762274264777,0.06512573,102840.0,102810.0,0.30329068]
[1762274264969,0.1042804,102840.0,102810.0,0.21252068]
[1762274265125,0.1042804,102840.0,102810.0,0.01954279]
[1762274265126,0.02708,102830.0,102810.0,0.01954279]
[1762274265551,0.99250462,102840.0,102810.0,0.11156584]
[1762274265836,0.81090622,102840.0,102810.0,0.11156584]
[1762274266058,1.00338501,102840.0,102810.0,0.11156584]
[1762274266467,0.001,102830.0,102810.0,0.16747305]
[1762274266690,0.001,102830.0,102810.0,0.26386305]
[1762274267111,0.02269,102820.0,102810.0,0.0002]
[1762274267647,0.04973,102820.0,102810.0,0.0002]
[1762274268301,0.24424468,102820.0,102810.0,0.0002]
[1762274268544,0.94887299,102820.0,102810.0,0.0002]
[1762274268713,1.28887299,102820.0,102810.0,0.0012]
[1762274269136,1.28887299,102820.0,102810.0,0.0032]
[1762274269578,1.09435831,102820.0,102810.0,0.0032]
[1762274269782,0.58424468,102820.0,102810.0,0.0032]
[1762274270226,0.36269,102820.0,102810.0,0.0032]
[1762274270440,0.02269,102820.0,102810.0,0.0032]
[1762274270646,0.04973,102820.0,102810.0,0.0032]
[1762274271095,0.62651975,102830.0,102810.0,0.0032]
[1762274271311,0.04973,102820.0,102810.0,0.0032]
[1762274271512,0.09425,102820.0,102810.0,0.0032]
[1762274271942,0.28876468,102820.0,102810.0,0.0002]
[1762274272142,0.99339299,102820.0,102810.0,0.0002]
[1762274272567,0.28876468,102820.0,102810.0,0.0002]
[1762274272987,0.28876468,102820.0,102810.0,0.0012]
[1762274273189,0.28876468,102820.0,102810.0,0.0032]
[1762274273771,0.09425,102820.0,102810.0,0.0032]
[1762274274543,0.04452,102820.0,102810.0,0.0032]
[1762274274792,0.03908624,102840.0,102810.0,0.16144]
[1762274274968,0.25959717,102840.0,102810.0,0.25164911]
[1762274275141,0.04452,102840.0,102810.0,0.15707305]
[1762274275335,0.04452,102840.0,102820.0,0.04865]
[1762274275753,9e-05,102830.0,102810.0,0.14487305]
[1762274275956,0.06612185,102840.0,102810.0,0.14487305]
[1762274276185,0.06512715,102840.0,102810.0,0.24126305]
[1762274276415,0.23999789,102840.0,102810.0,0.24126305]
[1762274276614,9e-05,102820.0,102810.0,0.0042]
[1762274276837,0.94375299,102820.0,102810.0,0.0042]
[1762274277039,0.94384299,102820.0,102810.0,0.0042]
[1762274277434,0.94384299,102820.0,102810.0,0.0002]
[1762274277634,0.0447,102820.0,102810.0,0.0002]
[1762274277980,0.23921468,102820.0,102810.0,0.0012]
[1762274278398,0.0447,102820.0,102810.0,0.0002]
[1762274278604,0.23921468,102820.0,102810.0,0.0112]
[1762274279359,0.0447,102820.0,102810.0,0.0112]
[1762274280623,0.04461,102820.0,102810.0,0.0112]
[1762274281048,0.04452,102820.0,102810.0,0.0112]
[1762274281255,0.04452,102820.0,102810.0,0.02403214]
[1762274281467,0.0116136,102840.0,102810.0,0.17790519]
[1762274281667,0.04452,102830.0,102820.0,0.04865]
[1762274281883,0.04452,102830.0,102820.0,0.01934279]
[1762274282196,0.23919576,102830.0,102820.0,0.01934279]
[1762274282396,0.23919576,102830.0,102810.0,0.0062]
[1762274282397,0.19451468,102820.0,102810.0,0.0062]
[1762274282596,0.89932299,102820.0,102810.0,0.0062]
[1762274282804,3.89932299,102820.0,102810.0,0.0062]
[1762274282961,4.52460527,102820.0,102810.0,0.0062]
[1762274283157,4.52460527,102820.0,102800.0,0.00138864]
[1762274283158,0.1945336,102810.0,102800.0,0.00138864]
[1762274283481,0.1945336,102810.0,102800.0,0.00153449]
[1762274283482,4.41206724,102810.0,102800.0,0.00153449]
[1762274283747,4.41206724,102810.0,102800.0,0.00014449]
[1762274284336,0.19460932,102770.0,102760.0,0.01934279]
[1762274284547,0.19460932,102770.0,102740.0,0.01934279]
[1762274284548,0.95357809,102770.0,102740.0,0.01934279]
[1762274284719,3.89934975,102760.0,102740.0,0.01982938]
[1762274284923,9e-05,102750.0,102740.0,0.01982938]
[1762274285131,0.74932831,102750.0,102740.0,0.01982938]
[1762274285369,4.28397551,102750.0,102740.0,0.00220283]
[1762274285568,4.12551059,102750.0,102740.0,0.00220283]
[1762274285905,4.32015779,102750.0,102740.0,0.00220283]
[1762274286112,0.42088228,102750.0,102740.0,0.00320283]
[1762274286302,1.28397551,102750.0,102740.0,0.00220283]
[1762274286533,4.08932831,102750.0,102740.0,0.00220283]
[1762274286737,0.3847,102750.0,102740.0,0.00220283]
[1762274287093,0.3964744,102750.0,102740.0,0.00220283]
[1762274287295,0.3964744,102750.0,102710.0,0.39816525]
[1762274287496,0.3963844,102750.0,102720.0,0.20443921]
[1762274287749,0.38761,102750.0,102730.0,0.04865]
[1762274287943,0.38761,102750.0,102720.0,0.35412307]
[1762274288158,0.00309,102750.0,102740.0,0.001]
[1762274288303,9e-05,102750.0,102730.0,0.09202305]
[1762274288506,3.0,102730.0,102710.0,0.00544009]
[1762274288709,0.04461,102720.0,102710.0,0.00014584]
[1762274289117,0.04452,102720.0,102710.0,0.00014584]
[1762274289528,0.0447,102720.0,102710.0,0.00014584]
[1762274290346,0.04461,102720.0,102710.0,0.00014584]
[1762274290572,0.0447,102720.0,102710.0,0.00014584]
[1762274290782,0.0625328,102720.0,102710.0,0.00014584]
[1762274291133,0.0624428,102720.0,102710.0,0.00114584]
[1762274291611,0.96186515,102720.0,102710.0,0.00114584]
[1762274291818,1.30186515,102720.0,102710.0,0.00114584]
[1762274292449,1.33994356,102720.0,102710.0,0.00114584]
[1762274292668,4.3604211,102720.0,102710.0,0.00039584]
[1762274293254,4.36930686,102720.0,102710.0,0.00039584]
[1762274293491,4.82801366,102720.0,102710.0,0.00039584]
[1762274293708,5.9932449,102720.0,102710.0,0.00039584]
[1762274293953,6.00324489,102720.0,102710.0,0.00139584]
[1762274294178,5.9932449,102720.0,102710.0,0.001]
[1762274294405,4.24539804,102720.0,102710.0,0.00173605]
[1762274294625,5.9932449,102720.0,102710.0,0.00173605]
[1762274294846,6.00524489,102720.0,102710.0,0.00173605]
[1762274295054,6.01524488,102720.0,102710.0,0.00073605]
[1762274295552,4.16352089,102710.0,102700.0,0.00036]
[1762274295779,4.30292004,102710.0,102700.0,0.00036]
[1762274296003,4.30292004,102710.0,102680.0,0.0002]
[1762274296004,4.15355883,102690.0,102680.0,0.0002]
[1762274296250,4.17981935,102690.0,102680.0,0.00034594]
[1762274296490,4.21609163,102690.0,102680.0,0.00034594]
[1762274296719,3.63347601,102690.0,102680.0,0.00034594]
[1762274297154,4.21609163,102690.0,102680.0,0.00034594]
[1762274297377,4.22609162,102690.0,102680.0,0.00034594]
[1762274297601,1.15357779,102680.0,102670.0,0.0004]
[1762274297808,4.18159058,102680.0,102670.0,0.00088527]
[1762274298022,4.17159059,102680.0,102670.0,0.00088527]
[1762274298889,4.21811059,102680.0,102670.0,0.00088527]
[1762274299169,4.0233307,102680.0,102670.0,0.00088527]
[1762274299412,0.0179228,102680.0,102670.0,0.00088527]
[1762274299628,0.0625328,102680.0,102670.0,0.00088527]
[1762274299847,0.0624428,102680.0,102670.0,0.00088527]
[1762274300061,0.0623528,102680.0,102670.0,0.58350089]
[1762274300283,0.04452,102680.0,102670.0,0.69632089]
[1762274300509,0.04452,102680.0,102670.0,0.78928089]
[1762274300729,0.04452,102680.0,102670.0,0.69732089]
[1762274300949,0.06229438,102680.0,102670.0,0.00088527]
[1762274301171,0.06238438,102680.0,102670.0,0.00388527]
[1762274301391,3.59716427,102680.0,102670.0,0.00388527]
[1762274301612,4.17977989,102680.0,102670.0,0.00486719]
[1762274301840,4.21596217,102680.0,102670.0,0.00286719]
[1762274302074,3.43856666,102680.0,102670.0,0.00186719]
[1762274302298,3.63334655,102680.0,102670.0,0.00186719]
[1762274302522,3.63334655,102680.0,102670.0,0.00586719]
[1762274303213,3.43856666,102680.0,102670.0,0.00586719]
[1762274303450,3.43956666,102680.0,102670.0,0.00886719]
[1762274303668,0.06338438,102680.0,102670.0,0.00886719]
[1762274303892,0.06338438,102680.0,102670.0,0.89210168]
[1762274303893,0.01968438,102680.0,102670.0,0.89210168]
[1762274304127,0.01768438,102680.0,102670.0,1.414294]
[1762274304346,0.01768438,102680.0,102670.0,1.55249932]
[1762274304568,0.01868438,102680.0,102670.0,1.55649932]
[1762274304793,0.001,102680.0,102670.0,1.51231705]
[1762274305021,0.001,102680.0,102670.0,1.55649932]
[1762274305245,0.00364,102720.0,102690.0,0.20448061]
[1762274305469,0.00364,102720.0,102700.0,0.09202305]
[1762274305687,0.02133218,102720.0,102700.0,0.67463867]
[1762274305912,0.02133218,102720.0,102700.0,0.86938021]
[1762274306134,0.02133218,102720.0,102710.0,0.58261562]
[1762274306353,0.02133218,102720.0,102700.0,1.01477423]
[1762274306574,0.01769218,102720.0,102710.0,0.58261562]
[1762274307241,0.01969218,102720.0,102710.0,0.58261562]
[1762274307455,0.01783783,102720.0,102710.0,0.58461562]
[1762274307672,0.01783783,102720.0,102710.0,0.77933862]
[1762274307882,0.01783783,102720.0,102710.0,0.58861562]
[1762274308103,0.01783783,102720.0,102710.0,0.006]
[1762274308333,0.02679407,102720.0,102710.0,0.006]
[1762274308541,0.03825763,102720.0,102710.0,0.006]
[1762274308936,0.03825763,102720.0,102710.0,0.58861562]
[1762274309377,0.04722044,102720.0,102710.0,0.006]
[1762274310160,0.04713044,102720.0,102710.0,0.006]
[1762274310361,0.04713044,102720.0,102710.0,0.68063867]
[1762274310564,0.04713044,102720.0,102710.0,1.03400167]
[1762274311238,0.04713044,102720.0,102710.0,0.83927867]
[1762274311454,0.04713044,102720.0,102710.0,0.74631867]
[1762274311659,0.04713044,102720.0,102710.0,1.03000167]
[1762274311883,0.04713044,102720.0,102710.0,0.74231867]
[1762274312111,0.04713044,102720.0,102710.0,1.03000167]
[1762274312326,0.04713044,102720.0,102710.0,1.12257773]
[1762274312936,0.04813044,102720.0,102710.0,0.83327867]
[1762274313137,0.04813044,102720.0,102710.0,0.353363]
[1762274313359,0.04813044,102720.0,102710.0,0.44538605]
[1762274313563,0.04813044,102720.0,102710.0,1.02800167]
[1762274313742,0.05013044,102720.0,102710.0,1.02800167]
[1762274314508,0.05013044,102720.0,102710.0,0.83327867]
[1762274314719,0.05013044,102720.0,102710.0,0.09202305]
[1762274315343,0.05022044,102720.0,102700.0,0.05267966]
[1762274315552,0.05013044,102720.0,102710.0,0.09202305]
[1762274315749,0.05013044,102720.0,102700.0,0.05267966]
[1762274315965,0.04513044,102720.0,102710.0,0.09202305]
[1762274316168,0.04413044,102720.0,102710.0,0.15446305]
[1762274316369,0.04413044,102720.0,102710.0,0.83617867]
[1762274316591,0.04213044,102720.0,102710.0,0.25356305]
[1762274316788,0.04213044,102720.0,102710.0,0.44828605]
[1762274317050,0.02943826,102720.0,102710.0,0.15446305]
[1762274317209,0.03143826,102720.0,102710.0,0.34918605]
[1762274317436,0.03143826,102720.0,102710.0,0.25356305]
[1762274317829,0.03343826,102720.0,102710.0,0.25356305]
[1762274318311,0.08473074,102720.0,102700.0,0.05267966]
[1762274319446,0.05120248,102710.0,102700.0,0.05259966]
[1762274319690,0.08049509,102710.0,102700.0,0.00553966]
[1762274320726,0.08049509,102710.0,102700.0,0.00124541]
[1762274320727,0.88200101,102710.0,102700.0,0.00124541]
[1762274320992,0.88200101,102710.0,102680.0,0.00529425]
[1762274320993,3.89773716,102710.0,102680.0,0.00529425]
[1762274321269,0.0518755,102690.0,102680.0,0.00529425]
[1762274321530,0.08116811,102690.0,102680.0,0.00529425]
[1762274321790,0.08125811,102690.0,102680.0,0.00529425]
[1762274322122,0.70835373,102690.0,102670.0,0.00569425]
[1762274322286,0.12573811,102690.0,102670.0,0.00569425]
[1762274322777,0.12564811,102690.0,102670.0,0.0977173]
[1762274323008,0.12773811,102690.0,102670.0,0.0977173]
[1762274323270,0.12564811,102690.0,102670.0,0.29251554]
[1762274323528,0.12555811,102690.0,102680.0,0.25721989]
[1762274323799,0.08107811,102690.0,102680.0,0.64505562]
[1762274324031,0.02929261,102690.0,102680.0,0.19477989]
[1762274324264,0.02929261,102690.0,102680.0,0.83983551]
[1762274324470,0.02929261,102690.0,102680.0,0.64505562]
[1762274324672,0.03229261,102690.0,102670.0,0.97423077]
[1762274325305,0.03229261,102690.0,102670.0,0.39161541]
[1762274325509,0.03229261,102690.0,102670.0,0.4377173]
[1762274325707,0.03429261,102690.0,102670.0,0.0004]
[1762274325921,9e-05,102680.0,102670.0,0.0004]
[1762274326125,0.02938261,102680.0,102670.0,0.0004]
[1762274326545,0.00905281,102680.0,102670.0,0.0004]
[1762274326752,0.00896281,102680.0,102670.0,0.0004]
[1762274326948,0.00887281,102680.0,102670.0,0.04914]
[1762274327160,0.00896281,102680.0,102670.0,0.00088527]
[1762274327610,0.02296281,102680.0,102670.0,0.00262174]
[1762274327822,0.02305281,102680.0,102670.0,0.00262174]
[1762274328025,0.02296281,102680.0,102670.0,0.00262174]
[1762274328237,0.04365653,102680.0,102670.0,0.00262174]
[1762274328449,0.04374653,102680.0,102670.0,0.00262174]
[1762274328897,0.04365653,102680.0,102670.0,0.00262174]
[1762274329293,0.04356653,102680.0,102670.0,0.20467479]
[1762274329844,0.06151489,102680.0,102670.0,0.09464479]
[1762274330040,0.06160489,102680.0,102670.0,0.09464479]
[1762274330259,0.06160489,102680.0,102670.0,0.00262174]
[1762274330458,0.06169489,102680.0,102670.0,0.00262174]
[1762274330815,0.06160489,102680.0,102670.0,0.00262174]
[1762274331442,0.06151489,102680.0,102670.0,0.14338479]
[1762274332221,0.06151489,102680.0,102670.0,0.09464479]
[1762274332424,0.06151489,102680.0,102670.0,0.14867904]
[1762274332866,0.06151489,102680.0,102670.0,0.40476791]
[1762274333069,0.06151489,102680.0,102670.0,0.30199904]
[1762274333247,0.06151489,102680.0,102670.0,0.49679791]
[1762274333458,0.06151489,102680.0,102670.0,1.51398959]
[1762274333677,0.05264208,102680.0,102670.0,1.51398959]
[1762274333912,0.05264208,102680.0,102670.0,1.41941353]
[1762274334480,0.05264903,102680.0,102670.0,1.41941353]
[1762274334682,0.05264903,102680.0,102670.0,0.83679791]
[1762274334897,0.05264903,102680.0,102670.0,1.41941353]
[1762274335077,0.05264903,102680.0,102670.0,0.83679791]
[1762274335282,0.05264903,102680.0,102670.0,1.41941353]
[1762274336199,0.05264903,102680.0,102670.0,0.74476791]
[1762274336405,0.05264903,102680.0,102670.0,0.83679791]
[1762274336612,0.06162463,102680.0,102670.0,0.83679791]
[1762274336960,0.04366932,102680.0,102670.0,0.83679791]
[1762274338754,0.04366932,102680.0,102670.0,0.54996904]
[1762274338961,0.04366932,102680.0,102670.0,0.00791599]
[1762274339135,0.04366932,102680.0,102670.0,0.49679791]
[1762274340658,0.04366932,102680.0,102670.0,0.14867904]
[1762274340877,0.04366932,102680.0,102670.0,1.07941353]
[1762274341067,0.04366932,102680.0,102670.0,0.49679791]
[1762274341344,0.04366932,102680.0,102670.0,0.20996904]
[1762274341553,0.04366932,102680.0,102670.0,0.00791599]
[1762274341554,0.62637494,102680.0,102670.0,0.00791599]
[1762274341766,0.04375932,102680.0,102670.0,0.00791599]
[1762274342101,0.03487372,102680.0,102670.0,0.00791599]
[1762274342300,0.61748934,102680.0,102670.0,0.00791599]
[1762274342622,0.03487372,102680.0,102670.0,0.00791599]
[1762274342831,0.23861529,102680.0,102670.0,0.00791599]
[1762274343033,0.82123091,102680.0,102670.0,0.00791599]
[1762274343192,0.81226923,102680.0,102670.0,0.00791599]
[1762274343398,0.8212282,102680.0,102670.0,0.00791599]
[1762274343666,0.83914531,102680.0,102670.0,0.00791599]
[1762274343849,0.83914531,102680.0,102670.0,0.00262174]
[1762274343850,4.17914531,102680.0,102670.0,0.00262174]
[1762274344212,4.18423174,102680.0,102670.0,0.00262174]
[1762274344419,4.22041402,102680.0,102670.0,0.00262174]
[1762274344858,4.21241402,102680.0,102670.0,0.00162174]
[1762274345069,4.20641402,102680.0,102670.0,0.00262174]
[1762274345492,4.20641402,102680.0,102670.0,0.00162174]
[1762274345856,4.80902962,102680.0,102670.0,0.00162174]
[1762274346186,3.69753269,102680.0,102670.0,0.00162174]
[1762274346342,0.48275282,102680.0,102670.0,0.00162174]
[1762274346546,0.67680542,102680.0,102670.0,0.00162174]
[1762274346741,0.0941898,102680.0,102670.0,0.00162174]
[1762274346995,0.0980998,102680.0,102670.0,0.00162174]
[1762274347198,0.0980098,102680.0,102670.0,0.00162174]
[1762274347405,0.06913372,102680.0,102670.0,0.00162174]
[1762274347560,0.02469372,102680.0,102670.0,0.06291174]
[1762274347926,0.001,102680.0,102670.0,0.00362174]
[1762274348133,0.00109,102680.0,102670.0,0.00362174]
[1762274348337,9e-05,102680.0,102670.0,0.00262174]
[1762274348579,0.00018,102680.0,102670.0,0.00262174]
[1762274348789,0.34318,102680.0,102670.0,0.00262174]
[1762274349033,0.38173018,102680.0,102670.0,0.00362174]
[1762274349233,0.36081571,102680.0,102670.0,0.00262174]
[1762274349439,0.36081571,102680.0,102670.0,0.00462174]
[1762274349440,0.36172571,102680.0,102670.0,0.00462174]
[1762274349646,0.36181571,102680.0,102670.0,0.00462174]
[1762274349854,0.36181571,102680.0,102670.0,0.00762174]
[1762274350265,0.36172571,102680.0,102670.0,0.00762174]
[1762274350469,0.36181571,102680.0,102670.0,0.00762174]
[1762274350675,0.36081571,102680.0,102670.0,0.00462174]
[1762274350877,0.36081571,102680.0,102670.0,0.00162174]
[1762274351090,0.36172571,102680.0,102670.0,0.00762174]
[1762274351324,0.02163571,102680.0,102670.0,0.06136174]
[1762274351515,0.001,102680.0,102670.0,0.15338479]
[1762274351936,0.001,102680.0,102670.0,0.21467479]
[1762274352625,0.001,102680.0,102670.0,0.59607972]
[1762274352843,0.001,102680.0,102670.0,1.51853861]
[1762274353252,0.001,102680.0,102670.0,0.84150366]
[1762274353455,0.001,102680.0,102670.0,1.54779929]
[1762274353677,0.001,102680.0,102670.0,1.54179929]
[1762274353909,0.04444,102710.0,102680.0,0.20450683]
[1762274354112,0.07130288,102710.0,102690.0,0.09202305]
[1762274354337,0.00018,102700.0,102680.0,0.00529425]
[1762274354548,3.00009,102690.0,102680.0,0.00529425]
[1762274354763,0.00018,102690.0,102680.0,0.00529425]
[1762274354970,9e-05,102690.0,102680.0,0.00529425]
[1762274355173,9e-05,102690.0,102680.0,0.00829425]
[1762274356221,9e-05,102690.0,102680.0,0.00529425]
[1762274357063,9e-05,102700.0,102680.0,0.00529425]
[1762274357205,3.0,102690.0,102680.0,0.01029425]
[1762274357649,3.0,102690.0,102680.0,0.00729425]
[1762274357848,3.0,102700.0,102680.0,0.00529425]
[1762274358047,3.24020093,102690.0,102680.0,0.00529425]
[1762274358249,3.06606624,102690.0,102680.0,0.00529425]
[1762274358597,0.06606624,102690.0,102680.0,0.00529425]
[1762274358890,0.06506624,102690.0,102680.0,0.00529425]
[1762274359100,0.06706624,102690.0,102680.0,0.00529425]
[1762274359301,0.002,102690.0,102680.0,0.35580414]
[1762274359625,0.002,102690.0,102680.0,0.40563839]
[1762274359798,0.002,102690.0,102680.0,1.11242495]
[1762274360021,0.002,102690.0,102680.0,0.11687943]
[1762274360192,0.002,102690.0,102680.0,0.06704518]
[1762274360354,0.002,102690.0,102680.0,0.00578518]
[1762274361154,0.003,102700.0,102680.0,0.00578518]
[1762274361363,0.06506723,102710.0,102690.0,0.24775305]
[1762274361575,0.02062723,102710.0,102700.0,1.10882065]
[1762274361784,0.0206449,102730.0,102700.0,1.12142893]
[1762274361986,0.04750261,102730.0,102710.0,0.00078085]
[1762274362185,0.06812759,102730.0,102710.0,0.00317775]
[1762274362397,0.27255266,102730.0,102700.0,0.05492425]
[1762274362625,0.27255266,102730.0,102700.0,0.00529425]
[1762274362626,0.003,102710.0,102700.0,0.00529425]
[1762274362841,0.04444,102710.0,102700.0,0.00529425]
[1762274363042,0.04458562,102710.0,102700.0,0.00529425]
[1762274363705,0.04858562,102710.0,102700.0,0.00529425]
[1762274364260,0.04458562,102710.0,102700.0,0.00529425]
[1762274364684,0.04558562,102710.0,102700.0,0.00529425]
[1762274364894,0.04658562,102710.0,102700.0,0.00529425]
[1762274368966,0.00214562,102710.0,102700.0,1.06206184]
[1762274369181,0.00214562,102710.0,102700.0,1.1566379]
[1762274369830,0.00014562,102710.0,102700.0,0.06655425]
[1762274370038,0.00614562,102710.0,102700.0,0.00629425]
[1762274370489,0.00014562,102710.0,102700.0,0.00529425]
[1762274370919,0.00414562,102710.0,102700.0,0.00529425]
[1762274371999,0.00014562,102710.0,102700.0,0.00529425]
[1762274372204,0.00014562,102710.0,102700.0,0.36478621]
[1762274372625,0.00614562,102710.0,102700.0,1.07208184]
[1762274373013,0.00614562,102710.0,102700.0,0.17104425]
[1762274373426,0.00614562,102710.0,102700.0,0.07192425]
[1762274373627,0.00614562,102710.0,102700.0,0.26666621]
[1762274373833,0.00614562,102710.0,102700.0,0.36578621]
[1762274374392,0.01014562,102710.0,102700.0,0.17104425]